bitfinex/quotes_ETHUSD_20241106
["timestamp","ask_amount","ask_price","bid_price","bid_amount"]
[1730927785132,3.57019199,2700.0,2699.8,0.01]
[1730927785339,3.57019199,2700.0,2699.6,0.7674]
[1730927785988,3.57019199,2700.0,2699.4,0.01]
[1730927786648,3.57019199,2700.0,2699.7,0.01]
[1730927786872,3.57019199,2700.0,2699.3,0.7674]
[1730927787148,3.57019199,2700.0,2699.5,0.01]
[1730927787348,3.92721119,2700.0,2699.5,0.01]
[1730927787977,3.92721119,2700.0,2699.7,0.01]
[1730927788193,3.92721119,2700.0,2699.3,0.7574]
[1730927788194,3.92721119,2700.0,2699.3,0.7674]
[1730927788495,3.92721119,2700.0,2699.5,0.01]
[1730927788678,3.92721119,2700.0,2699.7,0.01]
[1730927788987,0.39272112,2699.9,2699.3,0.7674]
[1730927789150,0.39272112,2699.9,2699.5,0.01]
[1730927789352,0.39272112,2699.9,2699.3,0.7674]
[1730927789952,0.39629131,2699.8,2699.3,0.01]
[1730927791454,3.57019199,2700.0,2699.3,0.01]
[1730927791754,3.57019199,2700.0,2699.5,0.01]
[1730927791955,4.72366092,2700.0,2699.5,0.01]
[1730927792788,1.15346893,2699.9,2699.3,0.01]
[1730927793175,1.95896893,2699.8,2699.3,0.01]
[1730927793475,3.57019199,2700.0,2699.9,0.01]
[1730927795704,3.57019199,2700.0,2699.9,0.8183]
[1730927796467,3.57019199,2700.0,2699.9,0.01]
[1730927798719,5.34982287,2700.0,2699.7,0.01]
[1730927798921,1.15947301,2699.8,2699.7,0.01]
[1730927799130,1.15947301,2699.9,2699.7,0.01]
[1730927800228,5.116156,2700.0,2699.7,0.01]
[1730927800229,3.57019199,2700.0,2699.7,0.01]
[1730927800429,3.57019199,2700.0,2699.9,0.01]
[1730927800592,5.7437189,2700.0,2699.7,0.01]
[1730927800796,1.15959847,2699.8,2699.7,0.01]
[1730927801380,1.15959847,2699.8,2699.5,0.01]
[1730927801720,1.15959847,2699.8,2699.7,0.01]
[1730927801902,1.15959847,2699.8,2699.5,0.01]
[1730927802098,1.15959847,2699.8,2699.7,0.01]
[1730927802632,1.15959847,2699.9,2699.3,0.8183]
[1730927802831,5.116156,2700.0,2699.3,0.01]
[1730927802832,1.15959847,2699.7,2699.3,0.01]
[1730927803030,1.15959847,2699.6,2699.5,0.01]
[1730927803398,1.15959847,2699.7,2699.5,0.01]
[1730927803613,1.15959847,2699.9,2699.5,0.8021]
[1730927803904,5.116156,2700.0,2699.9,0.01]
[1730927803905,4.72979046,2700.0,2699.9,0.01]
[1730927804085,3.57019199,2700.0,2699.9,3.8021]
[1730927804288,3.57019199,2700.0,2699.9,8.78970376]
[1730927804538,3.57019199,2700.0,2699.9,9.28753851]
[1730927804712,3.57019199,2700.0,2699.9,8.79970376]
[1730927805223,3.57019199,2700.0,2699.9,9.28753851]
[1730927805888,3.57019199,2700.0,2699.9,9.83753851]
[1730927806789,0.42192389,2700.0,2699.9,9.83753851]
[1730927807191,2.02682456,2700.6,2700.5,0.8021]
[1730927807440,0.60796401,2700.6,2700.5,9.04354426]
[1730927807735,0.130737,2701.6,2701.4,0.01]
[1730927807888,0.130737,2701.6,2701.5,4.3214632]
[1730927808092,0.130737,2701.6,2701.5,4.21236604]
[1730927808325,0.130737,2701.6,2701.5,3.5518632]
[1730927808828,0.130737,2701.6,2701.5,4.3458632]
[1730927809391,0.130737,2701.6,2701.5,3.794]
[1730927809805,0.130737,2701.6,2701.5,0.794]
[1730927810002,0.130737,2701.6,2701.4,3.7]
[1730927810433,0.130737,2701.6,2701.4,0.01]
[1730927811322,0.130737,2701.6,2701.2,0.01]
[1730927811743,0.130737,2701.6,2701.5,0.01]
[1730927812052,0.130737,2701.6,2701.2,0.01]
[1730927812262,0.130737,2701.6,2701.5,0.01]
[1730927812437,0.130737,2701.6,2701.2,0.01]
[1730927812639,0.130737,2701.6,2701.5,0.01]
[1730927812868,0.130737,2701.6,2700.9,0.01]
[1730927813021,0.130737,2701.6,2701.2,0.01]
[1730927815332,0.130737,2701.6,2701.2,0.54808367]
[1730927815643,0.130737,2701.6,2701.4,0.01]
[1730927815853,0.130737,2701.6,2701.5,0.01]
[1730927816879,0.130737,2701.6,2701.3,0.01]
[1730927817671,0.130737,2701.6,2701.5,0.01]
[1730927817843,0.130737,2701.6,2701.3,0.01]
[1730927818252,0.130737,2701.6,2701.5,0.01]
[1730927822389,0.130737,2701.6,2701.3,0.01]
[1730927822909,0.130737,2701.6,2701.5,0.01]
[1730927824304,0.130737,2701.6,2701.3,0.01]
[1730927824516,0.130737,2701.6,2701.5,0.01]
[1730927828093,0.130737,2701.6,2701.5,0.01]
[1730927828420,0.130737,2701.6,2701.3,0.01]
[1730927828585,0.130737,2701.6,2701.1,0.01]
[1730927828787,0.130737,2701.6,2701.3,0.01]
[1730927830218,0.798,2701.5,2700.6,0.01]
[1730927832300,0.798,2701.5,2701.1,0.01]
[1730927832506,0.798,2701.5,2701.3,0.01]
[1730927833433,0.798,2701.5,2701.1,0.01]
[1730927834580,0.798,2701.5,2701.0,0.01]
[1730927834781,0.798,2701.5,2701.3,0.01]
[1730927835388,0.798,2701.5,2701.0,0.01]
[1730927836112,0.798,2701.5,2700.7,0.01]
[1730927836283,0.798,2701.5,2699.8,4.10219723]
[1730927836284,0.798,2701.5,2700.5,0.01]
[1730927836617,0.7791,2701.3,2700.3,0.01]
[1730927836822,0.7791,2701.2,2700.3,0.01]
[1730927837738,0.7791,2701.1,2700.1,0.58725034]
[1730927837892,0.7791,2701.1,2700.4,0.01]
[1730927838086,0.7791,2700.9,2700.1,0.57725034]
[1730927838320,0.7791,2700.9,2700.0,0.01]
[1730927838488,1.93869847,2700.9,2699.8,0.01]
[1730927838689,0.33021668,2700.8,2699.8,0.01]
[1730927838909,0.7791,2700.7,2699.8,0.01]
[1730927839227,1.15959847,2700.8,2699.8,0.01]
[1730927839228,1.16959847,2700.8,2699.8,0.01]
[1730927839523,0.8093,2700.7,2699.8,0.01]
[1730927839890,0.8093,2700.4,2699.4,0.54658367]
[1730927840087,0.8093,2700.4,2699.4,0.01]
[1730927840283,0.01,2700.5,2699.4,0.01]
[1730927840284,1.97889847,2700.3,2699.4,0.01]
[1730927840488,0.8093,2700.1,2699.4,0.01]
[1730927841145,0.8093,2700.1,2699.2,0.01]
[1730927841447,1.96889847,2700.1,2699.2,0.01]
[1730927841746,0.7576,2700.0,2699.2,0.01]
[1730927842128,0.7927,2699.8,2698.9,0.01]
[1730927842301,0.7927,2699.8,2698.7,0.01]
[1730927842502,0.7927,2699.8,2698.4,1.3248632]
[1730927842503,0.19622985,2699.7,2698.9,0.01]
[1730927842704,1.95229847,2699.8,2698.7,0.01]
[1730927842918,1.95229847,2699.8,2698.9,0.01]
[1730927843328,0.8134,2699.6,2698.7,0.01]
[1730927843506,0.8134,2699.4,2698.7,0.01]
[1730927844407,0.8134,2699.8,2699.1,0.01]
[1730927844952,0.01,2699.7,2698.9,0.01]
[1730927846106,0.01,2699.7,2698.7,0.8364]
[1730927846310,0.01,2699.7,2698.7,0.01]
[1730927846730,0.8093,2699.6,2698.7,0.01]
[1730927846904,0.01,2699.5,2698.7,0.01]
[1730927848249,0.7669,2699.4,2698.5,0.01]
[1730927848480,0.7669,2699.4,2698.7,0.01]
[1730927849183,0.7669,2699.4,2698.5,0.01]
[1730927849379,0.7669,2699.4,2698.7,0.01]
[1730927849553,0.7669,2699.4,2698.9,0.01]
[1730927849741,0.7669,2699.4,2699.1,0.01]
[1730927853073,0.7669,2699.4,2699.2,0.01]
[1730927853962,0.7553,2699.9,2699.2,0.01]
[1730927853963,0.38651403,2699.8,2699.2,0.01]
[1730927854615,1.15341403,2699.8,2699.2,0.01]
[1730927854884,0.1908714,2699.7,2699.2,0.01]
[1730927856370,0.1908714,2699.7,2698.8,0.01]
[1730927856576,0.1908714,2699.7,2699.1,0.01]
[1730927857602,0.1908714,2699.7,2699.1,0.00439588]
[1730927857965,0.1908714,2699.7,2698.7,0.83689588]
[1730927858259,0.1908714,2699.7,2699.1,0.00439588]
[1730927858465,0.1908714,2699.7,2698.9,0.00439588]
[1730927858664,0.1908714,2699.7,2699.1,0.00439588]
[1730927860398,0.1908714,2699.7,2698.7,0.8325]
[1730927860399,0.1908714,2699.7,2698.9,0.00439588]
[1730927860560,0.7868,2699.2,2698.1,0.8179]
[1730927860761,0.7868,2699.2,2698.2,0.00439588]
[1730927861312,0.37947909,2699.1,2698.2,0.00439588]
[1730927861824,0.7868,2699.6,2698.8,0.00439588]
[1730927862026,0.7669,2699.8,2699.1,0.8075]
[1730927862326,1.1466264,2699.8,2699.1,0.8075]
[1730927862511,0.17863097,2699.7,2699.1,0.8075]
[1730927863819,0.17863097,2699.7,2699.1,0.81189588]
[1730927865329,1.1466264,2699.8,2699.1,0.81189588]
[1730927868586,0.7669,2699.8,2699.1,0.81189588]
[1730927869286,0.3865312,2700.1,2699.7,0.00439588]
[1730927869682,1.140119,2700.3,2699.7,0.00439588]
[1730927870319,1.33075481,2700.3,2699.7,0.00439588]
[1730927872713,1.33075481,2700.3,2699.6,0.7908]
[1730927873185,1.33075481,2700.3,2699.7,0.00439588]
[1730927873713,1.33075481,2700.3,2699.6,0.7908]
[1730927874087,1.33075481,2700.3,2699.7,0.00439588]
[1730927874779,1.33075481,2700.3,2699.6,0.7908]
[1730927874885,1.33075481,2700.3,2699.7,0.00439588]
[1730927875317,1.140119,2700.3,2699.7,0.00439588]
[1730927877805,1.140119,2700.3,2699.8,0.7546]
[1730927878125,1.140119,2700.3,2699.9,0.00439588]
[1730927881590,2.29049906,2700.3,2699.9,0.00439588]
[1730927882531,1.90328006,2700.2,2699.3,0.49875034]
[1730927882689,1.90328006,2700.2,2699.2,0.00439588]
[1730927882690,1.15038006,2699.7,2699.2,0.00439588]
[1730927882897,1.15038006,2699.6,2699.2,0.00439588]
[1730927883098,1.15038006,2699.5,2699.2,0.00439588]
[1730927883403,1.15038006,2699.6,2698.9,0.805]
[1730927883602,1.15038006,2699.4,2698.9,0.805]
[1730927883819,1.15038006,2699.3,2698.9,0.805]
[1730927884034,1.15038006,2699.3,2698.9,0.80939588]
[1730927884251,1.15038006,2699.3,2698.5,0.49875034]
[1730927884252,1.15038006,2699.3,2698.6,0.80939588]
[1730927884541,1.15038006,2699.0,2698.6,0.80939588]
[1730927885192,1.15038006,2698.9,2698.6,0.80939588]
[1730927887018,1.15038006,2698.9,2698.7,0.00439588]
[1730927887557,1.15038006,2698.9,2698.6,0.805]
[1730927887759,1.15038006,2698.8,2698.5,0.00439588]
[1730927888066,1.15038006,2698.8,2698.3,0.81669588]
[1730927890365,1.15038006,2698.8,2696.1,3.56833926]
[1730927890366,1.15038006,2698.5,2698.0,0.778]
[1730927890663,1.15038006,2698.3,2698.0,0.778]
[1730927890966,1.15038006,2698.3,2697.6,0.78919588]
[1730927891172,1.15038006,2698.2,2697.9,0.00439588]
[1730927891663,1.41880207,2698.3,2697.9,0.00439588]
[1730927892077,1.15038006,2698.3,2697.9,0.00439588]
[1730927892372,1.15038006,2698.4,2697.9,0.00439588]
[1730927892522,1.15038006,2698.4,2697.7,0.00439588]
[1730927892722,1.15038006,2698.4,2698.0,0.7848]
[1730927892922,1.26190912,2698.8,2698.0,0.7848]
[1730927893157,0.8001,2698.8,2698.0,0.7848]
[1730927893460,1.18276511,2698.8,2698.0,0.7848]
[1730927894375,1.15921322,2698.4,2698.0,0.7848]
[1730927897069,1.15921322,2698.4,2697.7,0.00439588]
[1730927897244,0.27048308,2698.3,2697.7,0.00439588]
[1730927897641,0.01,2698.6,2697.9,0.00439588]
[1730927897942,1.18276511,2698.8,2697.9,0.00439588]
[1730927898161,1.19276511,2698.8,2697.9,0.00439588]
[1730927898341,1.18276511,2698.8,2697.9,0.00439588]
[1730927898779,1.18276511,2698.8,2697.7,0.00439588]
[1730927898964,0.47233734,2698.7,2697.9,0.00439588]
[1730927899498,1.18276511,2698.8,2697.9,0.00439588]
[1730927900173,0.01,2698.7,2697.9,0.00439588]
[1730927900376,0.39652872,2698.7,2697.9,0.00439588]
[1730927900751,0.39652872,2698.7,2697.7,0.00439588]
[1730927901088,0.39652872,2698.7,2697.9,0.00439588]
[1730927902551,0.39652872,2698.7,2697.7,0.00439588]
[1730927902756,0.39652872,2698.7,2697.9,0.00439588]
[1730927903751,0.39652872,2698.7,2697.7,0.00439588]
[1730927903987,0.7956,2698.5,2697.6,0.8256]
[1730927904204,4.31620826,2698.0,2697.4,0.7881]
[1730927904352,4.31620826,2698.0,2697.3,0.00439588]
[1730927904680,0.01,2697.9,2696.8,0.7881]
[1730927904930,0.01,2697.5,2696.7,0.00439588]
[1730927905758,0.01,2697.5,2696.6,0.77280881]
[1730927905957,3.53060826,2697.4,2696.6,0.77280881]
[1730927906154,0.01,2697.1,2696.6,0.77280881]
[1730927906456,3.53621238,2696.8,2696.6,0.77280881]
[1730927906656,0.8126,2696.4,2695.2,4.58707793]
[1730927906857,4.34320826,2696.4,2695.3,0.00439588]
[1730927907096,0.43532083,2696.3,2695.3,0.00439588]
[1730927907393,0.44532083,2696.3,2695.5,0.00439588]
[1730927907570,0.44532083,2696.3,2695.3,0.44231288]
[1730927907896,0.44532083,2696.3,2695.5,0.00439588]
[1730927908680,0.55,2696.2,2695.4,0.437917]
[1730927909002,0.47885291,2696.2,2695.2,5.02059905]
[1730927909208,0.01,2696.1,2695.2,4.58268205]
[1730927909512,0.7627,2696.0,2695.2,3.80488205]
[1730927909670,0.00560412,2695.8,2695.2,3.80488205]
[1730927910071,0.01,2695.4,2695.2,3.80488205]
[1730927910311,0.01,2695.1,2694.5,4.43902906]
[1730927910615,0.01,2695.1,2694.2,0.00439588]
[1730927910796,0.01,2695.1,2694.0,0.76599588]
[1730927911106,0.40906083,2695.0,2694.2,0.00439588]
[1730927912519,0.40906083,2695.0,2694.0,0.76599588]
[1730927912674,0.7857,2694.9,2694.0,0.76599588]
[1730927913308,0.7857,2693.7,2692.7,0.00439588]
[1730927914204,0.7957,2693.7,2692.7,0.00439588]
[1730927914610,0.7857,2693.7,2692.7,0.00439588]
[1730927914916,0.38690563,2693.6,2692.7,0.00439588]
[1730927916000,0.38690563,2693.6,2692.6,0.7667]
[1730927916213,0.01,2693.5,2692.3,0.79399588]
[1730927916527,0.01,2693.5,2692.3,0.7896]
[1730927916727,0.00560412,2693.3,2692.3,0.7896]
[1730927917029,0.56560412,2693.3,2692.2,0.00439588]
[1730927917233,0.56560412,2693.3,2692.0,0.7896]
[1730927917383,0.7523,2693.0,2691.7,0.79399588]
[1730927917589,0.75790412,2693.0,2691.9,0.00439588]
[1730927917783,0.75790412,2693.0,2691.7,0.7896]
[1730927917979,0.7523,2692.5,2690.9,0.00439588]
[1730927918227,0.00560412,2692.4,2691.3,0.00439588]
[1730927918586,0.01,2692.3,2690.8,0.130737]
[1730927918791,0.7523,2692.1,2690.8,0.130737]
[1730927919109,0.7523,2692.1,2691.2,0.00439588]
[1730927919288,0.7523,2692.1,2690.8,0.130737]
[1730927919686,4.13460069,2692.0,2690.8,0.130737]
[1730927919976,0.7523,2691.5,2690.8,0.130737]
[1730927920231,0.48769007,2691.4,2690.8,0.130737]
[1730927920725,0.48769007,2691.4,2690.8,0.926637]
[1730927920927,0.7709,2691.9,2691.1,0.00439588]
[1730927921128,0.7709,2691.9,2691.3,0.00439588]
[1730927921624,0.7709,2691.9,2691.1,0.00439588]
[1730927921812,0.7709,2691.9,2690.9,0.00439588]
[1730927921989,0.48955007,2691.8,2690.8,0.130737]
[1730927922185,4.12460069,2691.6,2690.8,0.130737]
[1730927922422,0.7709,2691.5,2690.8,0.130737]
[1730927922582,0.01,2691.4,2690.8,0.130737]
[1730927922782,0.7709,2691.1,2690.8,0.130737]
[1730927922982,0.48955007,2691.0,2690.8,0.130737]
[1730927923386,0.48955007,2691.0,2689.6,0.00439588]
[1730927923630,0.48955007,2691.0,2689.5,0.7978]
[1730927923631,0.01560412,2690.7,2689.5,0.7978]
[1730927923867,0.01560412,2690.7,2689.4,0.00439588]
[1730927923868,4.12460069,2690.4,2689.4,0.00439588]
[1730927924971,0.46902048,2690.6,2688.6,0.00439588]
[1730927924972,0.01,2689.8,2688.6,0.00439588]
[1730927925144,0.8083,2689.7,2689.1,0.00439588]
[1730927925316,0.00560412,2690.3,2689.5,0.00439588]
[1730927925317,1.1287,2690.2,2689.5,0.00439588]
[1730927925520,0.38688563,2690.3,2689.8,0.00439588]
[1730927925721,0.8287,2690.7,2689.8,0.00439588]
[1730927926016,0.8287,2690.7,2689.2,0.35321235]
[1730927926017,0.8287,2690.7,2689.9,0.00439588]
[1730927927019,0.8287,2690.7,2690.1,0.00439588]
[1730927927249,0.38676417,2690.8,2690.1,0.00439588]
[1730927927453,0.38676417,2690.8,2689.9,0.8204]
[1730927927663,0.38676417,2690.8,2690.1,0.00439588]
[1730927928161,0.38676417,2690.8,2690.4,0.00439588]
[1730927928330,0.7959,2690.9,2690.7,0.00439588]
[1730927928534,0.7959,2690.9,2690.6,0.55]
[1730927928535,0.7544,2692.0,2691.1,0.00439588]
[1730927928728,0.38594963,2691.7,2691.1,0.00439588]
[1730927929755,0.38594963,2691.7,2690.6,0.55]
[1730927929756,0.38594963,2691.7,2691.2,0.00439588]
[1730927930264,0.8204,2691.9,2691.3,0.831]
[1730927930970,0.8204,2691.9,2691.6,0.00439588]
[1730927931176,0.8204,2691.9,2691.7,0.00439588]
[1730927931658,0.8204,2691.9,2691.3,0.831]
[1730927931659,0.8204,2691.9,2691.4,0.00439588]
[1730927931956,0.8204,2691.9,2691.3,0.831]
[1730927932465,0.8204,2691.9,2691.5,0.00439588]
[1730927934518,1.6124,2691.9,2691.1,0.00439588]
[1730927934719,1.6124,2691.9,2691.2,0.00439588]
[1730927934964,1.6124,2691.9,2690.9,0.82549588]
[1730927935199,1.6124,2691.9,2691.1,0.00439588]
[1730927935696,1.6124,2691.9,2690.9,0.8211]
[1730927935697,0.8204,2691.9,2691.3,0.00439588]
[1730927937264,0.8204,2691.9,2691.5,0.00439588]
[1730927938096,0.8204,2691.9,2691.3,0.00439588]
[1730927939315,0.8204,2691.9,2691.5,0.00439588]
[1730927939466,0.8204,2691.9,2691.2,0.82119588]
[1730927939965,0.8204,2691.9,2691.5,0.00439588]
[1730927940167,0.8204,2691.9,2691.2,0.8168]
[1730927940168,0.8204,2691.9,2691.2,0.82119588]
[1730927940369,0.8204,2691.9,2691.5,0.00439588]
[1730927940663,0.8204,2691.9,2691.3,0.00439588]
[1730927940900,0.8204,2691.9,2691.5,0.00439588]
[1730927941621,0.8204,2691.9,2691.2,0.8168]
[1730927941622,0.8204,2691.9,2691.7,0.00439588]
[1730927942402,0.8204,2691.9,2691.3,0.00439588]
[1730927942773,0.8204,2691.9,2691.5,0.00439588]
[1730927942972,0.8204,2691.9,2691.3,0.00439588]
[1730927943612,0.8204,2691.9,2691.5,0.00439588]
[1730927944513,0.8204,2691.9,2691.2,0.8168]
[1730927944514,0.8204,2691.9,2691.6,0.00439588]
[1730927946948,0.8267,2691.6,2690.1,0.00439588]
[1730927947237,4.12460069,2691.2,2690.2,0.00439588]
[1730927947438,0.8267,2691.1,2689.9,0.00439588]
[1730927947585,4.12460069,2690.8,2689.5,0.00439588]
[1730927947787,0.8267,2690.7,2689.5,0.00439588]
[1730927948185,0.8267,2690.7,2688.7,0.46108552]
[1730927948186,4.12460069,2690.4,2689.2,0.00439588]
[1730927948487,0.8267,2690.2,2688.7,0.00439588]
[1730927948688,0.8267,2689.8,2688.7,0.00439588]
[1730927949899,0.8267,2689.8,2688.9,0.00439588]
[1730927950101,1.32183007,2689.8,2689.1,0.00439588]
[1730927950723,1.32183007,2689.8,2689.3,0.00439588]
[1730927950941,0.8267,2689.8,2689.3,0.00439588]
[1730927951097,0.8267,2689.8,2689.1,0.00439588]
[1730927951299,0.8267,2689.8,2688.6,0.7933]
[1730927951300,0.8267,2689.8,2688.8,0.00439588]
[1730927951508,4.12460069,2689.6,2688.8,0.00439588]
[1730927952142,0.38665695,2689.5,2688.8,0.00439588]
[1730927952429,0.45112576,2689.4,2688.8,0.00439588]
[1730927952935,0.38665695,2689.5,2689.0,0.00439588]
[1730927954189,0.38665695,2689.5,2689.2,0.00439588]
[1730927954391,0.89027833,2689.8,2689.2,0.00439588]
[1730927954592,1.27688848,2689.8,2689.2,0.00439588]
[1730927955041,0.45018848,2689.8,2689.2,0.00439588]
[1730927955231,0.7643,2690.2,2689.4,0.00439588]
[1730927955430,0.38658361,2690.1,2689.4,0.00439588]
[1730927955729,0.38658361,2690.1,2689.1,3.0]
[1730927955730,0.38658361,2690.1,2689.2,0.00439588]
[1730927955930,0.38658361,2690.1,2689.4,0.00439588]
[1730927957569,0.38658361,2690.1,2690.0,0.00439588]
[1730927957826,0.00560412,2691.5,2690.0,0.00439588]
[1730927957827,0.38724819,2690.9,2690.2,0.00439588]
[1730927958037,0.38667414,2690.6,2690.2,0.80939588]
[1730927958219,0.38667414,2690.6,2690.2,0.00439588]
[1730927958392,0.38667414,2690.6,2689.7,0.00439588]
[1730927959493,0.83780162,2690.6,2689.9,0.00439588]
[1730927960315,0.83780162,2690.6,2690.0,0.00439588]
[1730927960521,0.83780162,2690.6,2689.5,0.805]
[1730927960522,0.83780162,2690.6,2689.7,0.00439588]
[1730927960717,0.83780162,2690.6,2690.0,0.00439588]
[1730927961429,0.83780162,2690.6,2689.8,0.00439588]
[1730927961640,0.83780162,2690.6,2690.0,0.00439588]
[1730927961641,0.38667414,2690.6,2690.0,0.00439588]
[1730927963675,0.38667414,2690.6,2690.2,0.00439588]
[1730927967929,0.38667414,2690.6,2689.3,0.00439588]
[1730927967930,4.89510069,2690.4,2689.3,0.00439588]
[1730927968153,0.48951007,2690.3,2689.6,0.00439588]
[1730927968630,0.7705,2690.4,2689.6,0.00439588]
[1730927968631,0.38670291,2690.2,2689.6,0.00439588]
[1730927969577,0.38670291,2690.2,2689.4,0.00439588]
[1730927969786,0.38670291,2690.2,2689.6,0.00439588]
[1730927969985,0.38670291,2690.2,2689.3,0.78509588]
[1730927970214,0.38670291,2690.2,2689.6,0.00439588]
[1730927971185,0.38670291,2690.2,2689.2,0.00439588]
[1730927971873,1.87321091,2690.2,2689.6,0.00439588]
[1730927972071,1.87321091,2690.2,2689.0,3.7929]
[1730927972072,0.26395467,2690.1,2689.4,0.00439588]
[1730927972867,0.26395467,2690.1,2689.6,0.00439588]
[1730927973055,0.26395467,2690.1,2689.4,0.00439588]
[1730927973280,0.29035014,2690.0,2689.4,0.00439588]
[1730927973484,0.29035014,2690.0,2689.6,0.00439588]
[1730927974979,0.29035014,2690.0,2689.4,0.00439588]
[1730927975490,0.29035014,2690.0,2689.6,0.00439588]
[1730927975789,0.29035014,2690.0,2689.0,4.54319]
[1730927975790,0.29035014,2690.0,2689.4,0.00439588]
[1730927976000,0.8155,2689.9,2689.2,0.00439588]
[1730927976152,0.8155,2689.9,2689.0,3.0]
[1730927976153,4.12460069,2689.5,2688.7,0.00439588]
[1730927976473,4.12460069,2689.5,2687.7,0.01]
[1730927976474,1.22796007,2689.4,2688.3,0.8087]
[1730927976675,1.22796007,2689.4,2688.2,0.00439588]
[1730927976676,0.8155,2689.3,2688.2,0.00439588]
[1730927976878,1.58183578,2689.3,2688.4,0.00439588]
[1730927977201,0.8155,2689.3,2688.4,0.00439588]
[1730927977487,0.19942959,2689.2,2688.4,0.00439588]
[1730927977689,0.19942959,2689.2,2688.6,0.81309588]
[1730927978050,0.19942959,2689.2,2688.8,0.00439588]
[1730927978255,0.8155,2689.3,2688.8,0.00439588]
[1730927978862,0.38659518,2689.2,2688.8,0.00439588]
[1730927979062,0.38659518,2689.2,2688.4,0.00439588]
[1730927979466,0.38659518,2689.2,2688.6,0.81309588]
[1730927979880,0.38659518,2689.2,2689.0,0.00439588]
[1730927980391,0.8137,2689.6,2689.0,0.00439588]
[1730927980699,0.386525,2689.4,2689.0,0.00439588]
[1730927982196,0.386525,2689.4,2688.8,0.00439588]
[1730927984964,0.58318108,2689.4,2688.8,0.00439588]
[1730927985198,0.58318108,2689.4,2689.0,0.00439588]
[1730927985785,0.386525,2689.4,2689.0,0.00439588]
[1730927986408,0.386525,2689.4,2689.1,0.7669]
[1730927986589,0.386525,2689.4,2689.2,0.00439588]
[1730927989366,0.386525,2689.4,2689.1,0.7669]
[1730927989571,0.386525,2689.4,2689.2,0.00439588]
[1730927990016,0.386525,2689.4,2689.0,0.00439588]
[1730927990894,0.386525,2689.4,2688.6,0.00439588]
[1730927990895,0.76633578,2689.3,2688.6,0.00439588]
[1730927991094,0.76633578,2689.1,2688.6,0.00439588]
[1730927991300,0.19158395,2689.0,2688.6,0.00439588]
[1730927991518,0.76633578,2688.9,2688.6,0.00439588]
[1730927991724,0.95791973,2689.0,2688.6,0.00439588]
[1730927992086,0.76633578,2688.9,2688.6,0.00439588]
[1730927992425,0.76633578,2688.8,2688.6,0.00439588]
[1730927993018,0.76633578,2688.8,2688.4,0.00439588]
[1730927993207,1.21278528,2688.8,2688.4,0.00439588]
[1730927993403,0.76633578,2688.7,2688.4,0.00439588]
[1730927993604,0.76633578,2688.6,2688.4,0.00439588]
[1730927995333,0.76633578,2688.9,2688.4,0.00439588]
[1730927995490,0.76633578,2688.9,2688.8,0.00439588]
[1730927995687,1.53610494,2689.1,2688.8,0.00439588]
[1730927995688,0.76633578,2689.0,2688.8,0.00439588]
[1730927995888,1.53610494,2689.1,2688.8,0.00439588]
[1730927995889,1.15293705,2689.1,2688.8,0.00439588]
[1730927996301,1.61268828,2689.1,2688.8,0.00439588]
[1730927996700,0.76633578,2689.0,2688.7,0.8034]
[1730927996904,0.76633578,2689.0,2688.8,0.00439588]
[1730927997502,1.15293705,2689.1,2688.8,0.00439588]
[1730927997906,0.76633578,2688.9,2688.8,0.00439588]
[1730927998116,1.22484701,2688.9,2688.6,0.00439588]
[1730927998435,0.77533919,2688.8,2688.6,0.00439588]
[1730927998607,0.77533919,2688.7,2688.6,0.00439588]
[1730927998942,0.77533919,2688.8,2688.6,0.00439588]
[1730928000355,0.77533919,2688.9,2688.6,0.00439588]
[1730928000563,0.77533919,2689.0,2688.8,0.00439588]
[1730928000850,0.77533919,2688.9,2688.8,0.00439588]
[1730928001022,1.0064836,2688.9,2688.6,0.00439588]
[1730928001207,0.7752575,2688.7,2688.6,0.00439588]
[1730928001923,0.7752575,2688.7,2688.4,0.00439588]
[1730928002118,1.14411521,2688.7,2688.4,0.00439588]
[1730928002325,0.36885771,2688.7,2688.6,0.00439588]
[1730928002521,0.7752575,2688.8,2688.4,0.00439588]
[1730928002935,0.7752575,2688.6,2688.3,0.00439588]
[1730928003149,0.7752575,2688.5,2688.3,0.00439588]
[1730928003513,1.14950367,2688.5,2688.1,0.130737]
[1730928003832,0.77519806,2688.4,2688.2,0.00439588]
[1730928004009,0.77519806,2688.4,2688.3,0.00439588]
[1730928004210,1.12110104,2688.4,2688.1,0.130737]
[1730928004451,0.77542097,2688.3,2688.2,0.00439588]
[1730928005229,1.495241,2688.4,2688.2,0.00439588]
[1730928005430,1.495241,2688.4,2688.1,0.130737]
[1730928005431,0.77519467,2688.3,2688.1,0.130737]
[1730928005617,0.77519467,2688.3,2688.2,0.00439588]
[1730928005832,0.77519467,2688.3,2688.1,0.130737]
[1730928006032,0.77519467,2688.3,2688.2,0.00439588]
[1730928006245,0.77526119,2688.3,2688.2,0.00439588]
[1730928006458,1.12099852,2688.4,2688.2,0.00439588]
[1730928006664,1.00231141,2688.3,2688.1,0.130737]
[1730928006970,0.77526119,2688.2,2688.1,0.130737]
[1730928007125,1.14950367,2688.3,2688.1,0.130737]
[1730928007964,1.14950367,2688.2,2688.1,0.130737]
[1730928008163,1.41772119,2688.2,2688.1,0.130737]
[1730928008325,1.14950367,2688.2,2688.1,0.130737]
[1730928008844,1.53267156,2688.3,2688.1,0.130737]
[1730928009067,0.7628,2688.2,2688.1,0.130737]
[1730928009238,2.29547156,2688.2,2688.1,0.130737]
[1730928009564,3.12429989,2688.2,2688.1,0.130737]
[1730928009768,2.70093885,2688.2,2688.1,0.130737]
[1730928009929,0.7628,2688.2,2688.1,0.130737]
[1730928010269,1.14920405,2688.2,2688.1,0.130737]
[1730928011160,3.47497067,2688.2,2688.1,0.130737]
[1730928011367,1.49670112,2688.2,2688.1,0.130737]
[1730928013153,3.82344927,2688.2,2688.1,0.130737]
[1730928013360,1.14920405,2688.2,2688.1,0.130737]
[1730928013831,3.4759522,2688.2,2688.1,0.130737]
[1730928014029,1.14920405,2688.2,2688.1,0.130737]
[1730928014231,3.4759522,2688.2,2688.1,0.130737]
[1730928014432,1.49679927,2688.2,2688.1,0.130737]